bitfinex/quotes_SOLUSD_20250123
["timestamp","ask_amount","ask_price","bid_price","bid_amount"]
[1737665818858,0.03,250.09,249.92,23.776884]
[1737665819077,0.03,250.09,249.97,1.0]
[1737665819281,0.03,250.09,250.08,312.0]
[1737665819485,3.1974,250.2,250.08,312.0]
[1737665819696,3.1974,250.2,249.97,1.0]
[1737665819992,3.1974,250.2,249.96,1.0]
[1737665820169,3.1974,250.2,249.92,0.7316627]
[1737665820690,3.2219,250.28,249.98,23.776884]
[1737665820887,3.2219,250.28,250.05,1.0]
[1737665821098,3.2219,250.28,250.0,1.0]
[1737665821389,3.2219,250.28,250.06,0.73125307]
[1737665821788,3.2219,250.28,250.1,1.0]
[1737665821991,3.2219,250.28,250.11,23.776884]
[1737665822281,3.2219,250.28,250.06,0.73125307]
[1737665822671,0.03,250.2,250.08,312.0]
[1737665822981,0.03,250.2,250.06,0.73125307]
[1737665823886,0.03,250.2,249.95,1.55345683]
[1737665824201,0.03,250.2,249.96,23.776884]
[1737665824387,0.03,250.2,249.89,12.8532]
[1737665824589,0.03,250.2,249.85,1.0]
[1737665824768,0.03,250.2,249.89,0.73175054]
[1737665825091,0.03,250.2,249.89,1.73175054]
[1737665825272,0.03,250.2,249.96,1.0]
[1737665825593,0.03,250.2,250.04,1.0]
[1737665825790,0.03,250.2,250.12,312.0]
[1737665825964,3.2219,250.28,250.12,312.0]
[1737665826169,0.452,250.2,250.13,0.73104842]
[1737665828893,3.6495,250.2,250.13,0.73104842]
[1737665829095,0.452,250.2,250.13,0.73104842]
[1737665829293,0.34803779,250.2,250.13,1.73104842]
[1737665829468,12.0347,250.32,250.13,1.73104842]
[1737665829663,15.2306,250.32,250.13,0.73104842]
[1737665829996,23.2203,250.32,250.13,0.73104842]
[1737665830193,18.2203,250.32,250.13,0.73104842]
[1737665830490,10.2306,250.32,250.13,0.73104842]
[1737665831488,18.2203,250.32,250.13,0.73104842]
[1737665831868,18.2203,250.32,250.13,4.842e-05]
[1737665831869,27.083584,250.28,250.13,4.842e-05]
[1737665832068,1.0,250.23,249.79,13.131]
[1737665832291,1.0,250.18,249.79,13.131]
[1737665832594,10.22052589,250.28,249.89,1.0]
[1737665832765,3.55623718,250.25,249.97,1.0]
[1737665832966,3.55623718,250.25,249.9,1.0]
[1737665833165,3.55623718,250.25,249.79,13.131]
[1737665833166,23.776884,250.23,249.88,1.0]
[1737665833387,3.0872,250.2,249.88,2.0]
[1737665833592,23.776884,250.19,249.9,1.0]
[1737665834301,3.0872,250.2,249.99,1.0]
[1737665834500,23.776884,250.19,249.89,1.0]
[1737665834671,3.55623718,250.18,249.83,1.0]
[1737665834999,30.0,250.15,249.8,0.063]
[1737665835171,27.33312118,250.14,249.8,0.063]
[1737665835497,27.1857,250.13,249.8,0.063]
[1737665835794,27.1857,250.13,249.87,2.0]
[1737665835993,3.1983,250.13,249.97,2.0]
[1737665836208,3.1983,250.13,249.98,1.0]
[1737665836513,3.1983,250.13,249.83,1.0]
[1737665836514,3.2719,250.28,250.16,1.0]
[1737665836671,3.196,250.31,250.23,1.0]
[1737665836878,3.2719,250.4,250.27,1.0]
[1737665837093,3.2719,250.4,250.28,1.0]
[1737665837297,3.2719,250.4,250.31,1.0]
[1737665837501,0.03,250.41,250.33,1.0]
[1737665837798,0.03,250.41,250.37,1.0]
[1737665838000,0.03,250.46,250.45,1.0]
[1737665838382,0.03,250.46,250.25,30.0]
[1737665838383,0.03,250.67,250.61,1.0]
[1737665838586,0.03,250.67,250.63,1.0]
[1737665838899,0.03,250.67,250.66,1.0]
[1737665839104,0.03,250.67,250.6,1.0]
[1737665839393,0.03,250.67,250.66,1.0]
[1737665839575,0.03,250.67,250.62,1.0]
[1737665839773,0.03,250.67,250.64,1.0]
[1737665839995,0.03,250.67,250.64,2.0]
[1737665840295,0.03,250.67,250.62,2.0]
[1737665840504,0.03,250.67,250.66,1.0]
[1737665840800,0.03,250.67,250.66,2.0]
[1737665841015,3.3591,250.91,250.79,1.0]
[1737665841178,13.1926,250.98,250.84,1.0]
[1737665841379,3.3591,251.04,250.69,1.0]
[1737665841380,3.1871,251.02,250.89,1.0]
[1737665841689,3.3591,251.04,250.69,50.29292777]
[1737665841690,3.3591,251.04,250.95,1.0]
[1737665841871,3.3591,251.04,250.98,1.0]
[1737665842091,13.1926,251.11,250.75,19.16884502]
[1737665842092,3.1861,251.09,250.99,1.0]
[1737665842398,13.1926,251.11,250.96,2.0]
[1737665842586,13.1926,251.11,250.95,1.0]
[1737665842779,3.3591,251.19,250.97,1.0]
[1737665842983,3.1849,251.18,251.1,1.0]
[1737665843217,3.1849,251.18,250.87,30.0]
[1737665843218,3.184,251.26,251.07,1.0]
[1737665843391,0.03,251.3,251.1,1.0]
[1737665843713,0.03,251.3,251.15,1.0]
[1737665843890,0.03,251.3,251.21,1.0]
[1737665844299,0.03,251.3,251.23,1.0]
[1737665844518,0.03,251.3,251.15,1.0]
[1737665844699,0.03,251.3,251.09,2.0]
[1737665844899,0.03,251.3,251.06,1.0]
[1737665845210,0.03,251.3,251.15,1.0]
[1737665845413,0.03,251.3,251.16,1.0]
[1737665845604,0.03,251.3,251.07,1.0]
[1737665845786,0.03,251.3,251.05,1.0]
[1737665846315,0.03,251.3,251.11,2.0]
[1737665846613,30.0,251.43,251.05,1.0]
[1737665846803,30.0,251.39,251.01,1.0]
[1737665847008,0.03,251.04,250.93,1.0]
[1737665847188,0.03,251.04,250.73,43.08]
[1737665847189,0.03,251.04,250.96,1.0]
[1737665847388,0.03,251.04,250.92,1.0]
[1737665847617,0.03,251.04,250.87,1.0]
[1737665847812,0.03,251.04,250.89,1.0]
[1737665848021,0.03,251.04,250.88,1.0]
[1737665848512,0.03,251.04,250.91,1.0]
[1737665848714,0.03,251.04,250.9,1.0]
[1737665848916,0.03,251.04,251.03,1.0]
[1737665849109,0.03,251.04,250.92,1.0]
[1737665849309,0.03,251.04,250.96,2.0]
[1737665849515,0.03,251.04,250.9,1.0]
[1737665849921,0.03,251.04,250.88,1.0]
[1737665850095,0.03,251.04,250.99,1.0]
[1737665850301,0.03,251.04,250.96,1.0]
[1737665850496,0.03,251.04,251.01,1.0]
[1737665850701,0.03,251.04,251.03,2.0]
[1737665850902,13.2504,251.37,251.15,1.0]
[1737665851126,2.7848,251.36,251.11,2.0]
[1737665851327,2.7848,251.36,251.2,2.0]
[1737665851528,2.7848,251.36,251.2,1.0]
[1737665851708,2.7848,251.36,251.18,1.0]
[1737665851904,2.7848,251.36,251.1,1.0]
[1737665852113,23.6711,251.36,251.03,1.0]
[1737665852410,42.78242993,251.36,251.04,2.0]
[1737665852611,37.5953,251.36,251.09,1.0]
[1737665852816,37.5953,251.36,251.1,1.0]
[1737665853018,37.5953,251.36,251.09,1.0]
[1737665853325,37.5953,251.36,251.09,2.0]
[1737665853541,37.5953,251.36,251.12,1.0]
[1737665853708,37.5953,251.36,250.96,13.761]
[1737665853709,37.5953,251.36,251.09,1.0]
[1737665854038,37.5953,251.36,251.12,1.0]
[1737665854337,23.776884,251.35,251.07,1.0]
[1737665854537,53.776884,251.35,250.97,1.0]
[1737665854703,3.3627,251.3,250.93,1.0]
[1737665854908,98.17385317,251.28,250.96,1.0]
[1737665855221,7.82101287,251.3,250.97,1.0]
[1737665855409,3.3627,251.3,251.02,1.0]
[1737665855614,23.6777,251.29,251.0,1.0]
[1737665855908,23.6777,251.29,251.07,1.0]
[1737665856422,2.7856,251.29,251.12,1.0]
[1737665856625,2.7856,251.29,251.15,1.0]
[1737665856812,9.7496,251.29,251.06,1.0]
[1737665857328,9.7496,251.29,251.1,1.0]
[1737665857711,23.776884,251.28,251.06,1.0]
[1737665858131,9.7496,251.29,251.11,1.0]
[1737665858631,9.7496,251.29,251.15,1.0]
[1737665858834,9.7496,251.29,251.09,1.0]
[1737665859006,23.6777,251.29,251.13,1.0]
[1737665859212,9.7496,251.29,251.17,1.0]
[1737665859412,9.7496,251.29,251.13,2.0]
[1737665859738,33.524184,251.35,251.07,1.0]
[1737665859940,33.524184,251.35,251.04,0.063]
[1737665860248,30.0,251.34,251.04,0.063]
[1737665860404,30.0,251.28,251.04,0.063]
[1737665860603,3.3631,251.3,251.04,0.063]
[1737665860604,23.776884,251.27,251.04,0.063]
[1737665860833,3.3631,251.3,251.04,0.063]
[1737665861733,9.7496,251.29,251.04,0.063]
[1737665862031,23.6777,251.29,251.04,0.063]
[1737665862244,37.6058,251.29,251.07,1.0]
[1737665862542,23.776884,251.28,251.04,0.063]
[1737665863249,23.776884,251.28,251.06,1.0]
[1737665863439,37.6058,251.29,251.04,0.063]
[1737665863440,9.7496,251.29,251.14,1.0]
[1737665863613,23.6721,251.35,251.2,1.0]
[1737665863806,9.7473,251.35,251.2,1.0]
[1737665864008,9.7473,251.35,251.2,2.0]
[1737665864205,2.7849,251.35,251.24,1.0]
[1737665864403,2.7849,251.35,251.11,13.2591]
[1737665864404,2.7844,251.4,251.32,1.0]
[1737665864614,101.44295317,251.69,251.34,1.0]
[1737665864812,101.44295317,251.69,251.38,1.0]
[1737665864813,2.783,251.53,251.38,1.0]
[1737665865016,2.783,251.53,251.31,1.0]
[1737665865230,9.7404,251.53,251.23,1.0]
[1737665865443,1.592291,251.52,251.32,1.0]
[1737665865744,23.776884,251.5,251.24,1.0]
[1737665866043,23.776884,251.5,251.25,1.0]
[1737665866245,23.776884,251.5,251.19,1.0]
[1737665866537,1.592556,251.52,251.41,1.0]
[1737665866738,2.7829,251.53,251.36,1.0]
[1737665866941,2.7829,251.53,251.33,1.0]
[1737665866942,9.7403,251.53,251.33,1.0]
[1737665867111,9.7403,251.53,251.3,1.0]
[1737665867314,9.7403,251.53,251.33,2.0]
[1737665867514,6.9574,251.53,251.32,1.0]
[1737665867731,6.9574,251.53,251.15,2.0]
[1737665867732,23.806884,251.54,251.2,1.0]
[1737665867941,12.7646,251.5,251.17,1.0]
[1737665868142,23.776884,251.42,251.08,1.0]
[1737665868327,30.0,251.38,251.04,1.063]
[1737665868532,30.0,251.43,251.04,1.063]
[1737665868855,23.776884,251.4,251.04,0.063]
[1737665869020,23.776884,251.4,251.05,1.0]
[1737665869225,30.0,251.41,251.05,1.0]
[1737665869529,101.81210094,251.49,251.04,0.063]
[1737665869530,26.827584,251.32,251.04,0.063]
[1737665869725,30.0,251.29,251.04,0.063]
[1737665870045,23.776884,251.3,251.06,2.0]
[1737665870344,9.7489,251.31,251.14,1.0]
[1737665870651,9.7489,251.31,251.11,1.0]
[1737665870831,1.593431,251.3,251.18,1.0]
[1737665871020,1.593431,251.3,251.24,1.0]
[1737665871330,2.7851,251.34,251.26,1.0]
[1737665871514,2.7851,251.34,251.2,1.0]
[1737665871718,6.962,251.37,251.14,1.0]
[1737665872028,2.8142,251.41,251.26,1.0]
[1737665872231,0.03,251.41,251.33,1.0]
[1737665872441,0.03,251.41,251.39,1.0]
[1737665872638,1.592141,251.52,251.43,1.0]
[1737665872823,2.7809,251.71,251.51,1.0]
[1737665873144,23.6381,251.71,251.49,1.0]
[1737665873337,1.591027,251.7,251.47,1.0]
[1737665873630,9.7353,251.66,251.32,1.0]
[1737665873833,9.7353,251.66,251.4,1.0]
[1737665874039,9.7353,251.66,251.37,1.0]
[1737665874040,9.7353,251.66,251.42,1.0]
[1737665874240,23.6429,251.66,251.44,1.0]
[1737665874456,9.7353,251.66,251.47,1.0]
[1737665874662,9.7353,251.66,251.36,2.0]
[1737665874834,23.776884,251.65,251.37,1.0]
[1737665875156,53.776884,251.65,251.31,1.0]
[1737665875348,23.776884,251.64,251.35,1.0]
[1737665875540,30.0,251.62,251.3,1.0]
[1737665875763,9.736,251.64,251.3,1.0]
[1737665875946,9.736,251.64,251.32,1.0]
[1737665876131,47.421584,251.64,251.29,1.0]
[1737665876332,23.776884,251.63,251.35,1.0]
[1737665876659,23.776884,251.63,251.31,1.0]
[1737665876834,37.5534,251.64,251.32,1.0]
[1737665877033,30.0,251.62,251.28,1.0]
[1737665877258,23.776884,251.56,251.24,1.0]
[1737665877444,23.776884,251.53,251.2,1.0]
[1737665877647,47.436784,251.48,251.16,1.0]
[1737665877832,47.436784,251.48,251.25,1.0]
[1737665878337,23.6599,251.48,251.27,1.0]
[1737665878539,23.6599,251.48,251.25,1.0]
[1737665878749,23.776884,251.47,251.29,1.0]
[1737665878932,37.5775,251.48,251.28,1.0]
[1737665879136,37.5775,251.48,251.25,1.0]
[1737665879463,23.776884,251.47,251.21,1.0]
[1737665879678,23.776884,251.47,251.27,1.0]
[1737665879884,9.743,251.46,251.32,1.0]
[1737665880174,9.743,251.46,251.32,2.0]
[1737665880359,9.743,251.46,251.17,1.52071755]
[1737665880360,2.7837,251.46,251.39,1.0]
[1737665880559,2.7837,251.46,251.36,2.0]
[1737665880766,2.7837,251.46,251.35,1.0]
[1737665880971,2.7837,251.46,251.27,1.0]
[1737665880972,9.743,251.46,251.27,1.0]
[1737665881166,23.776884,251.45,251.27,1.0]
[1737665881361,9.743,251.46,251.3,1.0]
[1737665881762,1.56038801,251.53,251.3,1.0]
[1737665881966,23.6559,251.52,251.3,1.0]
[1737665882175,23.776884,251.51,251.3,1.0]
[1737665882487,23.6559,251.52,251.36,1.0]
[1737665882655,2.783,251.52,251.42,1.0]
[1737665882860,13.9068,251.68,251.48,1.0]
[1737665882861,2.7816,251.65,251.48,1.0]
[1737665883061,2.7816,251.65,251.57,1.0]
[1737665883258,2.7816,251.65,251.59,1.0]
[1737665883785,0.2486,251.66,251.59,2.0]
[1737665883986,9.9839,251.66,251.38,1.0]
[1737665884159,9.9839,251.66,251.42,1.0]
[1737665884562,9.9839,251.66,251.44,1.0]
[1737665884756,23.776884,251.65,251.42,1.0]
[1737665884956,23.776884,251.65,251.38,1.0]
[1737665885164,23.776884,251.65,251.39,1.0]
[1737665885660,23.8915,251.66,251.24,1.0]
[1737665885661,1.0,251.58,251.24,1.0]
[1737665885878,23.776884,251.56,251.21,1.0]
[1737665886388,30.0,251.49,251.15,14.0126]
[1737665886687,31.0,251.43,251.06,0.063]
[1737665886985,30.0,251.32,251.06,0.063]
[1737665887172,30.0,251.38,251.06,0.063]
[1737665887369,30.0,251.47,251.14,1.0]
[1737665887570,30.0,251.47,251.12,1.0]
[1737665887760,9.7441,251.43,251.09,1.0]
[1737665888088,9.7441,251.43,251.23,1.0]
[1737665888301,23.6644,251.43,251.19,1.0]
[1737665888489,30.0,251.39,251.07,1.0]
[1737665888786,23.776884,251.38,251.06,0.063]
[1737665888985,3.11816832,251.42,251.06,0.063]
[1737665888986,38.30967628,251.43,251.14,1.0]
[1737665889171,38.30967628,251.43,251.22,1.0]
[1737665889376,37.5847,251.43,251.2,1.0]
[1737665889684,23.776884,251.42,251.17,1.0]
[1737665889994,30.0,251.39,251.06,0.063]
[1737665890189,53.6663,251.41,251.1,1.0]
[1737665890488,30.0,251.4,251.06,0.063]
[1737665890664,0.72497628,251.4,251.09,1.0]
[1737665890864,0.72497628,251.4,251.14,1.0]
[1737665891063,0.72497628,251.4,251.06,1.063]
[1737665891362,23.776884,251.39,251.06,1.063]
[1737665891562,0.72497628,251.4,251.08,1.0]
[1737665891763,3.1645,251.45,251.26,1.0]
[1737665892065,6.961,251.4,251.32,1.0]
[1737665892281,6.961,251.4,251.18,12.5688]
[1737665892282,5.8292313,251.39,251.25,1.0]
[1737665892490,5.8292313,251.39,251.34,1.0]
[1737665892664,5.8292313,251.39,251.27,1.0]
[1737665892988,5.8292313,251.39,251.24,1.0]
[1737665893178,5.8292313,251.39,251.28,1.0]
[1737665893379,5.8292313,251.39,251.32,1.0]
[1737665893690,5.8292313,251.39,251.36,1.0]
[1737665893893,5.8292313,251.39,251.38,1.0]
[1737665894194,9.743,251.46,251.18,13.5688]
[1737665894493,9.743,251.46,251.18,12.5688]
[1737665894701,23.776884,251.45,251.18,12.5688]
[1737665894871,23.776884,251.43,251.07,12.5578]
[1737665895068,23.776884,251.4,251.06,0.063]
[1737665895282,3.76697628,251.39,251.06,0.063]
[1737665895667,3.76697628,251.39,251.09,23.776884]
[1737665895881,2.7846,251.38,251.15,1.0]
[1737665896192,2.7846,251.38,251.18,0.063]
[1737665896596,9.7461,251.38,251.18,0.063]
[1737665897190,23.776884,251.37,251.18,0.063]
[1737665897393,39.705974,251.37,251.18,0.063]
[1737665897893,24.776884,251.35,251.06,0.063]
[1737665898076,30.0,251.33,251.06,0.063]
[1737665898280,13.1005,251.34,251.06,0.063]
[1737665898281,23.776884,251.26,251.06,0.063]
[1737665898503,23.776884,251.23,251.06,0.0001]
[1737665898800,23.776884,251.16,250.8,0.063]
[1737665899287,1.0,251.17,250.8,0.063]
[1737665899493,1.0,251.15,250.8,0.063]
[1737665899697,1.0,251.07,250.8,0.063]
[1737665899994,1.0,251.08,250.8,0.063]
[1737665900197,23.776884,251.07,250.8,0.063]
[1737665900585,9.7574,251.09,250.8,0.063]
[1737665900799,1.0,251.07,250.8,0.063]
[1737665900972,10.7574,251.09,250.8,0.063]
[1737665901300,23.776884,250.99,250.8,0.063]
[1737665901773,23.776884,251.01,250.8,0.063]
[1737665902093,2.7888,251.0,250.8,0.063]
[1737665902474,2.7881,251.06,250.8,0.063]
[1737665902672,9.7585,251.06,250.8,0.063]
[1737665902872,6.969,251.12,250.8,0.063]
[1737665903178,2.7869,251.17,250.87,23.776884]
[1737665903384,2.7869,251.17,250.91,23.776884]
[1737665903581,2.7864,251.22,250.94,1.0]
[1737665903901,0.2486,251.23,250.98,1.0]
[1737665904194,0.2486,251.23,251.06,23.776884]
[1737665904406,0.2486,251.23,251.12,1.0]
[1737665904572,2.7839,251.44,251.17,23.776884]
[1737665904777,2.7839,251.44,251.17,24.776884]
[1737665905697,2.7836,251.47,251.19,23.776884]
[1737665905877,2.7827,251.55,251.18,13.4629]
[1737665906074,6.9573,251.46,251.19,23.776884]
[1737665906273,9.7395,251.55,251.21,1.0]
[1737665906488,9.7395,251.55,251.18,12.4629]
[1737665906797,9.7395,251.49,251.24,23.776884]
[1737665907101,9.7395,251.55,251.18,12.4629]
[1737665907271,9.7395,251.49,251.2,1.0]
[1737665907475,9.7395,251.55,251.26,23.776884]
[1737665907476,2.7827,251.55,251.26,23.776884]
[1737665907884,6.9552,251.52,251.24,23.776884]
[1737665908403,6.9552,251.61,251.24,2.0]
[1737665908604,6.9552,251.55,251.31,24.776884]
[1737665908768,2.7819,251.62,251.33,24.776884]
[1737665908973,2.7817,251.65,251.35,1.0]
[1737665909171,6.9552,251.65,251.36,23.776884]
[1737665909407,2.7818,251.64,251.33,2.0]
[1737665909570,2.7819,251.63,251.36,1.0]
[1737665909775,9.7365,251.63,251.31,1.0]
[1737665909979,6.9546,251.63,251.21,1.0]
[1737665910286,2.7814,251.67,251.35,1.0]
[1737665910602,12.3991,251.71,251.31,1.0]
[1737665910603,2.8108,251.72,251.43,19.75549586]
[1737665910781,2.8108,251.72,251.46,23.776884]
[1737665910782,0.03,251.72,251.46,23.776884]
[1737665910984,0.03,251.72,251.62,312.0]
[1737665911498,0.03,251.81,251.6,23.776884]
[1737665911902,0.03,251.81,251.62,23.776884]
[1737665912085,0.03,251.81,251.64,1.0]
[1737665912281,0.03,251.81,251.65,1.0]
[1737665912484,2.7784,251.94,251.67,1.0]
[1737665913087,2.7784,251.94,251.67,23.776884]
[1737665913287,13.885,252.07,251.67,24.776884]
[1737665913482,13.8804,252.16,251.73,1.0]
[1737665913690,6.9435,252.04,251.74,23.776884]
[1737665913907,6.9418,252.1,251.73,1.0]
[1737665914075,6.9418,252.1,251.68,2.0]
[1737665914278,0.5724,251.94,251.7,1.0]
[1737665914590,0.5724,251.94,251.72,312.0]
[1737665914978,23.776884,251.93,251.61,12.6094]
[1737665915184,23.776884,251.93,251.54,1.0]
[1737665915385,23.776884,251.93,251.5,2.0]
[1737665915694,23.776884,251.93,251.53,1.0]
[1737665915894,23.776884,251.93,251.5,1.0]
[1737665916097,23.776884,251.89,251.47,12.266]
[1737665916299,1.0,251.88,251.47,12.266]
[1737665916599,1.0,251.81,251.39,24.19166656]
[1737665916805,1.0,251.88,251.4,20.21701384]
[1737665916996,23.6184,251.92,251.48,1.0]
[1737665917206,23.776884,251.91,251.51,1.0]
[1737665917406,23.776884,251.91,251.47,1.0]
[1737665917582,23.6184,251.92,251.41,1.0]
[1737665917583,1.0,251.9,251.41,1.0]
[1737665917784,38.5116,251.92,251.45,1.0]
[1737665917785,0.72497628,251.89,251.45,1.0]
[1737665917997,9.7268,251.88,251.48,23.776884]
[1737665918314,23.776884,251.87,251.46,23.776884]
[1737665918505,23.776884,251.87,251.5,1.0]
[1737665918808,23.776884,251.85,251.38,1.0]
[1737665919012,23.6223,251.88,251.46,1.0]
[1737665919184,23.776884,251.83,251.37,43.92]
[1737665919385,23.776884,251.83,251.37,42.92]
[1737665919609,23.776884,251.84,251.41,23.776884]
[1737665919811,54.776884,251.81,251.37,42.92]
[1737665919993,23.776884,251.79,251.37,42.92]
[1737665920196,12.8372,251.75,251.37,42.92]
[1737665920510,12.8372,251.75,251.38,23.776884]
[1737665921008,23.776884,251.74,251.38,23.776884]
[1737665921213,54.776884,251.74,251.36,0.063]
[1737665921390,23.776884,251.71,251.36,0.063]
[1737665921587,0.72497628,251.73,251.36,0.063]
[1737665921799,0.72497628,251.73,251.37,23.776884]
[1737665922000,23.776884,251.74,251.36,0.063]
[1737665922310,47.412284,251.74,251.36,0.063]
[1737665922513,1.0,251.71,251.36,0.063]
[1737665922717,23.776884,251.65,251.36,0.063]
[1737665923013,30.0,251.7,251.36,0.063]
[1737665923217,1.0,251.69,251.36,0.063]
[1737665923398,31.0,251.73,251.36,0.063]
[1737665923792,0.72497628,251.72,251.36,0.063]
[1737665924205,23.6381,251.71,251.36,0.063]
[1737665924611,23.776884,251.68,251.36,0.063]
[1737665924815,23.776884,251.64,251.36,0.063]
[1737665925192,0.72497628,251.68,251.36,0.063]
[1737665925915,23.776884,251.7,251.36,0.063]
[1737665926118,9.734,251.69,251.36,0.063]
[1737665926409,23.6399,251.69,251.36,0.063]
[1737665927203,23.776884,251.68,251.36,0.063]
[1737665928095,13.9059,251.69,251.36,0.063]
[1737665928818,23.776884,251.68,251.36,0.063]
[1737665929319,53.776884,251.68,251.36,0.063]
[1737665929613,30.0,251.64,251.36,0.063]
[1737665929816,1.0,251.65,251.36,0.0001]
[1737665929817,33.2044,251.63,251.36,0.0001]
[1737665930117,0.72497628,251.62,251.36,0.0001]
[1737665930284,20.8672,251.59,251.36,0.0001]
[1737665930490,23.776884,251.58,251.36,0.0001]
[1737665931726,12.6184,251.58,251.36,0.0001]
[1737665932088,2.7825,251.57,251.36,0.0001]
[1737665932292,23.776884,251.56,251.36,0.0001]
[1737665933800,2.7825,251.57,251.36,0.0001]
[1737665934203,23.776884,251.56,251.36,0.0001]
[1737665934620,23.776884,251.54,251.36,0.0001]
[1737665934825,23.776884,251.51,251.36,0.0001]
[1737665935125,23.776884,251.47,251.36,0.0001]
[1737665935304,30.0,251.43,251.12,0.2]
[1737665935507,23.776884,251.42,251.12,0.2]
[1737665935708,24.776884,251.42,251.12,0.2]
[1737665935913,23.776884,251.4,251.12,0.2]
[1737665936437,23.776884,251.35,251.12,0.2]
[1737665936600,23.776884,251.32,251.12,0.2]
[1737665936928,53.776884,251.3,251.12,0.0001]
[1737665937105,0.72497628,251.31,251.12,0.0001]
[1737665937301,23.776884,251.3,251.12,0.0001]
[1737665937794,12.5128,251.29,251.1,0.0001]
[1737665938121,23.776884,251.28,251.1,0.0001]
[1737665938311,23.776884,251.26,251.1,0.0001]
[1737665938505,23.776884,251.22,251.06,0.0001]
[1737665939020,24.50186028,251.22,251.06,0.0001]
[1737665939823,23.776884,251.18,251.06,0.0001]
[1737665940816,9.7527,251.21,251.06,0.0001]
[1737665941534,2.7865,251.21,251.08,32.20929145]
[1737665941727,13.9246,251.36,251.12,32.20929145]
[1737665941909,9.7454,251.4,251.18,32.20929145]
[1737665942344,0.5724,251.21,251.16,32.20929145]
[1737665942511,0.5724,251.21,251.2,32.20929145]
[1737665942840,0.5724,251.21,251.13,32.20929145]
[1737665943444,0.5724,251.21,251.11,32.20929145]
[1737665943732,3.3589,251.21,251.13,32.20929145]
[1737665944231,3.3589,251.21,251.19,32.20929145]
[1737665944232,0.5724,251.21,251.19,32.20929145]
[1737665944613,0.5724,251.21,251.15,32.20929145]
[1737665944839,3.3589,251.21,251.11,32.20929145]
[1737665945026,3.3589,251.21,251.13,0.063]
[1737665945220,10.3251,251.21,251.13,0.063]
[1737665945421,23.776884,251.2,251.13,0.063]
[1737665945735,23.776884,251.2,251.06,0.0001]
[1737665945940,0.5724,251.21,251.06,0.0001]
[1737665945941,23.6871,251.19,251.06,0.0001]
[1737665946107,23.776884,251.18,251.06,0.0001]
[1737665947821,23.776884,251.16,251.06,0.0001]
[1737665948908,23.776884,251.16,250.89,32.20929145]
[1737665949111,11.98,251.15,250.89,32.20929145]
[1737665949526,23.776884,251.14,250.91,32.20929145]
[1737665949941,40.623,251.17,250.95,32.20929145]